fUSD/lending_fUSD_20240517
["ID","MTS","AMOUNT","RATE_DAILY","PERIOD"]
[327306490,1715977852630,-500.0,0.00019178,2]
[327306491,1715977852642,-500.0,0.00019178,2]
[327306492,1715977852652,-500.0,0.00019178,2]
[327306493,1715977852662,-500.0,0.00019178,2]
[327306494,1715977852673,-500.0,0.00019178,2]
[327306495,1715977852684,-500.0,0.00019178,2]
[327306496,1715977852695,-500.0,0.00019178,2]
[327306497,1715977852705,-151.0,0.00019178,2]
[327306498,1715977852714,-151.0,0.00019178,2]
[327306499,1715977852724,-500.0,0.00019178,2]
[327306500,1715977852733,-500.0,0.00019178,2]
[327306501,1715977852742,-500.0,0.00019178,2]
[327306502,1715977852751,-200.0,0.00019178,2]
[327306503,1715977852761,-500.0,0.00019178,2]
[327306504,1715977852771,-500.0,0.00019178,2]
[327306505,1715977852780,-500.0,0.00019178,2]
[327306506,1715977852790,-500.0,0.00019178,2]
[327306507,1715977852799,-500.0,0.00019178,2]
[327306508,1715977852809,-500.0,0.00019178,2]
[327306509,1715977852820,-500.0,0.00019178,2]
[327306510,1715977852832,-500.0,0.00019178,2]
[327306511,1715977852842,-617.40981481,0.00019178,2]
[327306512,1715977852853,-500.0,0.00019178,2]
[327306513,1715977852863,-500.0,0.00019178,2]
[327306514,1715977852873,-500.0,0.00019178,2]
[327306515,1715977852883,-500.0,0.00019178,2]
[327306516,1715977852892,-264.60420634,0.00019178,2]
[327306517,1715977852902,-200.0,0.00019178,2]
[327306518,1715977852912,-200.0,0.00019178,2]
[327306519,1715977852922,-200.0,0.00019178,2]
[327306520,1715977852932,-200.0,0.00019178,2]
[327306521,1715977852941,-200.0,0.00019178,2]
[327306522,1715977852950,-200.0,0.00019178,2]
[327306523,1715977852960,-173.0,0.00019178,2]
[327306524,1715977852969,-10126.6,0.00019178,2]
[327306525,1715977852980,-55000.0,0.00019178,2]
[327306526,1715977852989,-3131.59,0.00019178,2]
[327306527,1715977853000,-771.0554,0.00019178,2]
[327306528,1715977853010,-771.0554,0.00019178,2]
[327306529,1715977853020,-200.0,0.00019178,7]
[327306530,1715977853030,-31391.83499502,0.0001918,2]
[327306531,1715977853039,-152.0,0.00019181,25]
[327306532,1715977853049,-7901.77369099,0.00019189,2]
[327306533,1715977853058,-902.47746754,0.00019189,2]
[327306534,1715977853068,-7748.85226468,0.000192,2]
[327306535,1715977853077,-4069.91,0.000192,2]
[327306536,1715977853086,-4876.03,0.000192,2]
[327306537,1715977853095,-4308.86,0.000192,2]
[327306538,1715977853104,-13402.07915297,0.000192,2]
[327306539,1715977853115,-594.736997,0.000192,2]
[327306540,1715977853126,-594.736997,0.000192,2]
[327306541,1715977853136,-171.746872,0.000192,2]
[327306542,1715977853145,-345.560596,0.000192,2]
[327306543,1715977853158,-345.560596,0.000192,2]
[327306544,1715977853168,-151.0,0.000192,2]
[327306545,1715977853177,-472.67228928,0.00019218,2]
[327306546,1715977853186,-150.0,0.00019219,2]
[327306547,1715977853198,-169.37772416,0.00019225,2]
[327306548,1715977853207,-150.0,0.0001923,2]
[327306549,1715977853217,-3819.86,0.00019235,7]
[327306550,1715977853227,-3819.86,0.00019235,7]
[327306551,1715977853236,-150.0,0.00019235,2]
[327306552,1715977853247,-150.0,0.00019238,2]
[327306553,1715977853256,-150.0,0.00019258,2]
[327306554,1715977853266,-150.0,0.00019262,2]
[327306555,1715977853276,-472.67228928,0.00019268,2]
[327306556,1715977853286,-2280.14178071,0.0001928,2]
[327306557,1715977853297,-1500.0,0.00019284,2]
[327306558,1715977853308,-150.0,0.00019294,2]
[327306559,1715977853317,-150.0,0.00019298,2]
[327306560,1715977853327,-150.0,0.00019303,2]
[327306561,1715977853338,-154.75954023,0.00019312,2]
[327306562,1715977853348,-500.0,0.00019329,2]
[327306563,1715977853358,-150.0,0.00019329,2]
[327306564,1715977853369,-60614.13029284,0.0001933,6]
[327306565,1715977853380,-152.0,0.00019335,26]
[327306566,1715977853391,-150.0,0.00019342,2]
[327306567,1715977853402,-1312.69,0.00019347,15]
[327306568,1715977853412,-166.66666666,0.00019356,2]
[327306569,1715977853422,-152.84858728,0.00019365,2]
[327306570,1715977853431,-150.0,0.00019366,2]
[327306571,1715977853440,-152.31829643,0.00019373,2]
[327306572,1715977853449,-150.0,0.00019377,2]
[327306573,1715977853459,-472.67228928,0.00019403,2]
[327306574,1715977853468,-225.5401325,0.00019407,2]
[327306575,1715977853477,-1500.0,0.00019407,2]
[327306576,1715977853486,-1000.0,0.00019428,10]
[327306577,1715977853495,-150.0,0.00019435,2]
[327306578,1715977853504,-150.0,0.00019438,2]
[327306579,1715977853513,-154.51679898,0.0001944,2]
[327306580,1715977853524,-150.0,0.00019447,2]
[327306581,1715977853534,-150.0,0.00019449,2]
[327306582,1715977853543,-150.0,0.00019456,2]
[327306583,1715977853552,-1151.34669323,0.00019471,2]
[327306584,1715977853561,-150.0,0.00019479,2]
[327306585,1715977853571,-154.75954023,0.0001948,2]
[327306586,1715977853580,-152.0,0.0001949,27]
[327306587,1715977853591,-150.63567191,0.00019491,2]
[327306588,1715977853600,-500.0,0.00019499,2]
[327306589,1715977853610,-1631.09065791,0.000195,2]
[327306590,1715977853620,-250000.0,0.000195,2]
[327306591,1715977853629,-154.145093,0.000195,2]
[327306592,1715977853638,-151.0,0.000195,2]
[327306593,1715977853647,-504.7,0.000195,2]
[327306594,1715977853656,-151.0,0.000195,2]
[327306595,1715977853665,-504.7,0.000195,2]
[327306596,1715977853675,-151.0,0.000195,2]
[327306597,1715977853684,-151.0,0.000195,2]
[327306598,1715977853693,-151.0,0.000195,2]
[327306599,1715977853702,-151.0,0.000195,2]
[327306600,1715977853711,-151.0,0.000195,2]
[327306601,1715977853720,-151.0,0.000195,2]
[327306602,1715977853729,-151.0,0.000195,2]
[327306603,1715977853738,-1500.0,0.000195,2]
[327306604,1715977853747,-1000.0,0.000195,2]
[327306605,1715977853756,-151.0,0.000195,2]
[327306606,1715977853765,-324.969005,0.000195,2]
[327306607,1715977853776,-324.969005,0.000195,2]
[327306608,1715977853785,-151.0,0.000195,2]
[327306609,1715977853795,-150.0,0.000195,2]
[327306610,1715977853804,-150.0,0.000195,2]
[327306611,1715977853813,-151.0,0.000195,2]
[327306612,1715977853822,-151.0,0.000195,2]
[327306613,1715977853833,-3819.86,0.00019508,7]
[327306614,1715977853843,-3819.86,0.00019508,7]
[327306615,1715977853853,-500.0,0.00019511,2]
[327306616,1715977853863,-199.95004313,0.00019513,2]
[327306617,1715977853873,-152.99399679,0.00019517,2]
[327306618,1715977853882,-189.44858197,0.0001952,2]
[327306619,1715977853891,-376.36,0.00019526,2]
[327306620,1715977853901,-307.14,0.0001953,2]
[327306621,1715977853910,-150.5,0.0001956,15]
[327306622,1715977853920,-294.0,0.0001956,15]
[327306623,1715977853929,-150.5,0.0001956,15]
[327306624,1715977853938,-150.5,0.0001956,15]
[327306625,1715977853947,-150.0,0.0001956,2]
[327306626,1715977853957,-300.0,0.00019561,2]
[327306627,1715977853966,-150.5,0.0001957,15]
[327306628,1715977853975,-294.0,0.0001957,15]
[327306629,1715977853985,-150.5,0.0001957,15]
[327306630,1715977853994,-150.5,0.0001957,15]
[327306631,1715977854004,-150.5,0.0001957,15]
[327306632,1715977854014,-150.5,0.0001957,15]
[327306633,1715977854024,-3926.0,0.0001957,15]
[327306634,1715977854034,-353.0,0.0001957,15]
[327306635,1715977854043,-4739.0,0.0001957,15]
[327306636,1715977854053,-150.5,0.0001957,15]
[327306637,1715977854063,-150.5,0.0001957,15]
[327306638,1715977854073,-150.5,0.0001957,15]
[327306639,1715977854083,-155.0,0.0001957,15]
[327306640,1715977854092,-488.0,0.0001957,15]
[327306641,1715977854101,-150.5,0.0001958,15]
[327306642,1715977854111,-150.5,0.0001958,15]
[327306643,1715977854122,-294.0,0.0001958,15]
[327306644,1715977854131,-150.5,0.0001958,15]
[327306645,1715977854141,-150.5,0.0001958,15]
[327306646,1715977854156,-150.5,0.0001958,15]
[327306647,1715977854166,-150.5,0.0001958,15]
[327306648,1715977854175,-150.5,0.0001958,15]
[327306649,1715977854185,-150.5,0.0001958,15]
[327306650,1715977854194,-150.5,0.0001958,15]
[327306651,1715977854204,-150.5,0.0001958,15]
[327306652,1715977854214,-150.5,0.0001958,15]
[327306653,1715977854223,-3926.0,0.0001958,15]
[327306654,1715977854234,-152.61,0.0001958,15]
[327306655,1715977854244,-154.15,0.0001958,15]
[327306656,1715977854254,-154.03,0.0001958,15]
[327306657,1715977854263,-152.14,0.0001958,15]
[327306658,1715977854273,-353.0,0.0001958,15]
[327306659,1715977854282,-4739.0,0.0001958,15]
[327306660,1715977854291,-155.0,0.0001958,15]
[327306661,1715977854300,-488.0,0.0001958,15]
[327306662,1715977854309,-497.542979,0.0001958,2]
[327306663,1715977854319,-151.0,0.0001958,2]
[327306664,1715977854328,-151.0,0.0001958,2]
[327306665,1715977854337,-151.0,0.0001958,2]
[327306666,1715977854347,-151.0,0.0001958,2]
[327306667,1715977854356,-1010.62,0.0001958,2]
[327306668,1715977854365,-150.0,0.00019584,2]
[327306669,1715977854375,-189.44858197,0.00019587,2]
[327306670,1715977854384,-154.75954023,0.00019589,2]
[327306671,1715977854393,-3926.0,0.0001959,15]
[327306672,1715977854403,-353.0,0.0001959,15]
[327306673,1715977854412,-4739.0,0.0001959,15]
[327306674,1715977854421,-155.0,0.0001959,15]
[327306675,1715977854430,-488.0,0.0001959,15]
[327306676,1715977854440,-150.0,0.00019594,2]
[327306677,1715977854449,-154.51679898,0.00019601,2]
[327306678,1715977854459,-150.0,0.00019612,2]
[327306679,1715977854468,-166.6666667,0.00019631,2]
[327306680,1715977854478,-150.0,0.00019633,2]
[327306681,1715977854487,-152.0,0.00019645,28]
[327306682,1715977854497,-153.90576894,0.00019649,2]
[327306683,1715977854506,-158.12,0.00019658,2]
[327306684,1715977854515,-150.0,0.0001966,2]
[327306685,1715977854526,-163.92345764,0.00019661,2]
[327306686,1715977854535,-159.96588011,0.00019662,2]
[327306687,1715977854544,-150.0,0.00019666,2]
[327306688,1715977854553,-150.0,0.00019689,2]
[327306689,1715977854563,-150.0,0.00019697,2]
[327306690,1715977854573,-9541.80941044,0.000197,2]
[327306691,1715977854583,-150.0,0.00019706,2]
[327306692,1715977854592,-150.03377781,0.00019713,2]
[327306693,1715977854601,-318.93380238,0.00019726,2]
[327306694,1715977854611,-500.0,0.00019726,2]
[327306695,1715977854620,-199.64973257,0.00019736,2]
[327306696,1715977854629,-150.0,0.00019751,2]
[327306697,1715977854639,-150.0,0.00019758,2]
[327306698,1715977854648,-150.63567191,0.00019763,2]
[327306699,1715977854658,-500.0,0.0001977,2]
[327306700,1715977854667,-700.0,0.0001977,2]
[327306701,1715977854677,-3819.86,0.00019781,7]
[327306702,1715977854686,-3819.86,0.00019781,7]
[327306703,1715977854696,-6373.59834624,0.000198,10]
[327306704,1715977854706,-152.0,0.000198,29]
[327306705,1715977854716,-234.29958061,0.000198,5]
[327306706,1715977854726,-523.42,0.00019803,2]
[327306707,1715977854780,-290.15309922,0.00019815,2]
[327306708,1715977854789,-150.0,0.00019817,2]
[327306709,1715977854799,-300.0,0.00019825,2]
[327306710,1715977854808,-167.84518346,0.00019827,2]
[327306711,1715977854817,-150.0,0.00019828,2]
[327306712,1715977854827,-150.0,0.00019836,2]
[327306713,1715977854836,-166.66666666,0.00019839,2]
[327306714,1715977854845,-154.75954023,0.00019843,2]
[327306715,1715977854854,-189.44858197,0.00019856,2]
[327306716,1715977854863,-150.0,0.0001986,2]
[327306717,1715977854873,-300.0,0.00019878,2]
[327306718,1715977854882,-150.63567191,0.00019878,2]
[327306719,1715977854891,-150.0,0.0001989,4]
[327306720,1715977854900,-150.0,0.0001989,4]
[327306721,1715977854910,-150.0,0.0001989,4]
[327306722,1715977854919,-150.0,0.0001989,4]
[327306723,1715977854929,-150.0,0.0001989,4]
[327306724,1715977854938,-150.30280721,0.0001989,4]
[327306725,1715977854947,-150.0,0.00019892,4]
[327306726,1715977854957,-150.0,0.00019894,4]
[327306727,1715977854966,-150.0,0.00019895,4]
[327306728,1715977854976,-150.0,0.00019895,4]
[327306729,1715977854985,-150.0,0.00019897,4]
[327306730,1715977854995,-771.0554,0.00019898,2]
[327306731,1715977855004,-771.0554,0.00019898,2]
[327306732,1715977855013,-175.535237,0.00019898,2]
[327306733,1715977855023,-151.0,0.00019898,2]
[327306734,1715977855032,-516.420207,0.00019898,2]
[327306735,1715977855042,-516.420207,0.00019898,2]
[327306736,1715977855051,-151.0,0.00019898,2]
[327306737,1715977855060,-151.0,0.00019898,2]
[327306738,1715977855069,-150.0,0.00019898,4]
[327306739,1715977855078,-150.0,0.00019899,4]
[327306740,1715977855086,-500.0,0.00019899,2]
[327306741,1715977855096,-150.0,0.000199,4]
[327306742,1715977855105,-1662.89350853,0.000199,2]
[327306743,1715977855321,-9788.93241596,0.000199,2]
[327306744,1715977855331,-11451.82592446,0.000199,2]
[327306745,1715977855341,-11451.82592446,0.000199,2]
[327306746,1715977855350,-4566.87078315,0.000199,3]
[327306747,1715977855359,-151.0,0.000199,2]
[327306748,1715977855368,-151.0,0.000199,2]
[327306749,1715977855377,-151.0,0.000199,2]
[327306750,1715977855387,-594.736997,0.000199,2]
[327306751,1715977855396,-594.736997,0.000199,2]
[327306752,1715977855405,-345.560596,0.000199,2]
[327306753,1715977855414,-345.560596,0.000199,2]
[327306754,1715977855424,-151.0,0.000199,2]
[327306755,1715977855433,-7723.6,0.000199,2]
[327306756,1715977855443,-7723.6,0.000199,2]
[327306757,1715977855452,-7723.6,0.000199,2]
[327306758,1715977855461,-7723.6,0.000199,2]
[327306759,1715977855471,-7723.6,0.000199,2]
[327306760,1715977855480,-7723.6,0.000199,2]
[327306761,1715977855490,-7723.6,0.000199,2]
[327306762,1715977855498,-7723.6,0.000199,2]
[327306763,1715977855508,-7723.6,0.000199,2]
[327306764,1715977855517,-7723.6,0.000199,2]
[327306765,1715977855527,-7723.6,0.000199,2]
[327306766,1715977855536,-7723.6,0.000199,2]
[327306767,1715977855545,-7723.6,0.000199,2]
[327306768,1715977855555,-7723.6,0.000199,2]
[327306769,1715977855564,-7723.6,0.000199,2]
[327306770,1715977855573,-7723.6,0.000199,2]
[327306771,1715977855582,-7723.6,0.000199,2]
[327306772,1715977855591,-7723.6,0.000199,2]
[327306773,1715977855600,-7723.6,0.000199,2]
[327306774,1715977855610,-7723.6,0.000199,2]
[327306775,1715977855620,-300.0,0.000199,7]
[327306776,1715977855630,-150.0,0.00019901,2]
[327306777,1715977855639,-150.0,0.00019902,4]
[327306778,1715977855648,-150.0,0.00019903,4]
[327306779,1715977855657,-150.0,0.00019903,4]
[327306780,1715977855667,-150.0,0.00019905,4]
[327306781,1715977855676,-150.0,0.00019906,4]
[327306782,1715977855686,-150.0,0.00019907,4]
[327306783,1715977855696,-150.0,0.00019908,4]
[327306784,1715977855706,-150.0,0.00019909,4]
[327306785,1715977855716,-2280.14178071,0.00019909,2]
[327306786,1715977855725,-150.0,0.00019909,4]
[327306787,1715977855735,-150.0,0.00019911,4]
[327306788,1715977855744,-150.0,0.00019911,4]
[327306789,1715977855753,-150.0,0.00019913,4]
[327306790,1715977855762,-1500.0,0.00019913,2]
[327306791,1715977855771,-150.0,0.00019914,4]
[327306792,1715977855780,-150.0,0.00019916,4]
[327306793,1715977855789,-150.0,0.00019916,4]
[327306794,1715977855799,-150.0,0.00019917,4]
[327306795,1715977855808,-150.0,0.00019918,4]
[327306796,1715977855817,-150.0,0.00019919,4]
[327306797,1715977855826,-150.0,0.0001992,4]
[327306798,1715977855835,-150.0,0.00019921,4]
[327306799,1715977855844,-285.92319707,0.00019921,2]
[327306800,1715977855853,-150.0,0.00019922,4]
[327306801,1715977855863,-150.0,0.00019924,4]
[327306802,1715977855872,-150.0,0.00019924,4]
[327306803,1715977855881,-150.0,0.00019925,4]
[327306804,1715977855889,-300.0,0.00019926,2]
[327306805,1715977855898,-150.0,0.00019927,4]
[327306806,1715977855907,-150.0,0.00019927,4]
[327306807,1715977855916,-150.0,0.00019928,4]
[327306808,1715977855925,-150.0,0.00019929,4]
[327306809,1715977855936,-150.0,0.0001993,4]
[327306810,1715977855945,-150.0,0.00019932,4]
[327306811,1715977855954,-150.0,0.00019933,4]
[327306812,1715977855963,-150.0,0.00019933,4]
[327306813,1715977855973,-150.0,0.00019935,4]
[327306814,1715977855982,-151.0,0.00019935,2]
[327306815,1715977855992,-151.0,0.00019935,2]
[327306816,1715977856001,-150.0,0.00019936,4]
[327306817,1715977856011,-150.0,0.00019937,4]
[327306818,1715977856020,-157.66903106,0.00019937,2]
[327306819,1715977856031,-150.0,0.00019938,4]
[327306820,1715977856041,-150.0,0.0001994,4]
[327306821,1715977856050,-150.0,0.00019941,4]
[327306822,1715977856059,-150.0,0.00019941,4]
[327306823,1715977856069,-150.0,0.00019943,4]
[327306824,1715977856079,-150.0,0.00019943,2]
[327306825,1715977856089,-150.0,0.00019944,4]
[327306826,1715977856099,-150.0,0.00019945,4]
[327306827,1715977856108,-150.0,0.00019945,4]
[327306828,1715977856117,-150.0,0.00019945,4]
[327306829,1715977856127,-150.0,0.00019946,4]
[327306830,1715977856139,-150.0,0.00019948,4]
[327306831,1715977856153,-150.0,0.00019949,4]
[327306832,1715977856162,-150.0,0.00019949,4]
[327306833,1715977856172,-150.0,0.00019951,4]
[327306834,1715977856181,-150.0,0.00019952,4]
[327306835,1715977856190,-150.0,0.00019954,4]
[327306836,1715977856201,-150.0,0.00019954,4]
[327306837,1715977856211,-150.0,0.00019956,4]
[327306838,1715977856221,-169.1813528,0.00019957,2]
[327306839,1715977856232,-150.0,0.00019957,4]
[327306840,1715977856241,-150.0,0.00019958,4]
[327306841,1715977856250,-150.0,0.00019959,4]
[327306842,1715977856260,-500.0,0.00019959,2]
[327306843,1715977856270,-2397.0,0.0001996,2]
[327306844,1715977856280,-184773.0,0.0001996,2]
[327306845,1715977856290,-497.542979,0.0001996,2]
[327306846,1715977856299,-151.0,0.0001996,2]
[327306847,1715977856309,-151.0,0.0001996,2]
[327306848,1715977856319,-151.0,0.0001996,2]
[327306849,1715977856329,-151.0,0.0001996,2]
[327306850,1715977856338,-151.0,0.0001996,2]
[327306851,1715977856348,-151.0,0.0001996,2]
[327306852,1715977856358,-248.62954,0.0001996,2]
[327306853,1715977856367,-504.7,0.0001996,2]
[327306854,1715977856376,-151.0,0.0001996,2]
[327306855,1715977856386,-504.7,0.0001996,2]
[327306856,1715977856397,-151.0,0.0001996,2]
[327306857,1715977856407,-151.0,0.0001996,2]
[327306858,1715977856419,-151.0,0.0001996,2]
[327306859,1715977856429,-594.736997,0.0001996,2]
[327306860,1715977856439,-594.736997,0.0001996,2]
[327306861,1715977856448,-345.560596,0.0001996,2]
[327306862,1715977856457,-345.560596,0.0001996,2]
[327306863,1715977856469,-150.0,0.0001996,4]
[327306864,1715977856479,-150.0,0.00019962,4]
[327306865,1715977856488,-150.0,0.00019962,4]
[327306866,1715977856497,-150.0,0.00019963,2]
[327306867,1715977856506,-150.0,0.00019963,4]
[327306868,1715977856515,-150.0,0.00019963,4]
[327306869,1715977856525,-150.0,0.00019965,4]
[327306870,1715977856535,-150.0,0.00019966,4]
[327306871,1715977856545,-150.0,0.00019967,4]
[327306872,1715977856554,-150.0,0.00019968,4]
[327306873,1715977856564,-150.0,0.0001997,4]
[327306874,1715977856573,-500.0,0.0001997,2]
[327306875,1715977856582,-500.0,0.0001997,2]
[327306876,1715977856591,-500.0,0.0001997,2]
[327306877,1715977856600,-700.0,0.0001997,2]
[327306878,1715977856610,-700.0,0.0001997,2]
[327306879,1715977856619,-700.0,0.0001997,2]
[327306880,1715977856629,-700.0,0.0001997,2]
[327306881,1715977856638,-500.0,0.0001997,2]
[327306882,1715977856648,-500.0,0.0001997,2]
[327306883,1715977856657,-150.63567191,0.0001997,2]
[327306884,1715977856666,-150.0,0.0001997,4]
[327306885,1715977856675,-150.0,0.00019971,4]
[327306886,1715977856684,-150.0,0.00019973,4]
[327306887,1715977856694,-150.0,0.00019973,4]
[327306888,1715977856703,-150.0,0.00019975,4]
[327306889,1715977856712,-150.0,0.00019975,4]
[327306890,1715977856722,-150.0,0.00019976,4]
[327306891,1715977856732,-150.0,0.00019978,4]
[327306892,1715977856741,-150.0,0.00019979,4]
[327306893,1715977856750,-157.6690311,0.00019979,2]
[327306894,1715977856759,-150.0,0.00019979,4]
[327306895,1715977856768,-150.0,0.0001998,2]
[327306896,1715977856778,-150.0,0.00019981,4]
[327306897,1715977856787,-150.0,0.00019982,4]
[327306898,1715977856797,-150.0,0.00019983,4]
[327306899,1715977856807,-150.0,0.00019983,4]
[327306900,1715977856816,-150.0,0.00019984,4]
[327306901,1715977856825,-150.0,0.00019986,4]
[327306902,1715977856834,-150.0,0.00019987,4]
[327306903,1715977856844,-150.0,0.00019987,4]
[327306904,1715977856853,-500.0,0.00019989,20]
[327306905,1715977856862,-150.0,0.00019989,4]
[327306906,1715977856871,-150.0,0.0001999,4]
[327306907,1715977856880,-150.0,0.00019992,4]
[327306908,1715977856889,-150.0,0.00019992,4]
[327306909,1715977856899,-150.0,0.00019994,4]
[327306910,1715977856908,-150.0,0.00019995,4]
[327306911,1715977856918,-150.0,0.00019996,4]
[327306912,1715977856927,-150.0,0.00019996,2]
[327306913,1715977856937,-150.0,0.00019997,4]
[327306914,1715977856947,-171.6343391,0.00019998,2]
[327306915,1715977856956,-162.00754103,0.00019998,2]
[327306916,1715977856967,-161.96864859,0.00019998,2]
[327306917,1715977856978,-172.71248637,0.00019998,2]
[327306918,1715977856988,-198.34474518,0.00019998,2]
[327306919,1715977856998,-201.09602539,0.00019998,2]
[327306920,1715977857007,-309.14851673,0.00019998,2]
[327306921,1715977857017,-201.55486485,0.00019998,2]
[327306922,1715977857028,-181.43184193,0.00019998,2]
[327306923,1715977857038,-190.88122462,0.00019998,2]
[327306924,1715977857047,-307.41572915,0.00019998,2]
[327306925,1715977857056,-500.0,0.00019998,2]
[327306926,1715977857066,-150.0,0.00019998,4]
[327306927,1715977857076,-188.3386856,0.00019999,2]
[327306928,1715977857086,-256.42551775,0.0002,2]
[327306929,1715977857095,-155.0,0.0002,2]
[327306930,1715977857105,-301.17047593,0.0002,2]
[327306931,1715977857114,-6234.77864991,0.0002,2]
[327306932,1715977857124,-155.53767023,0.0002,2]
[327306933,1715977857135,-155.52970738,0.0002,2]
[327306934,1715977857144,-861.64606522,0.0002,2]
[327306935,1715977857158,-9946.69055969,0.0002,2]
[327306936,1715977857168,-155.0,0.0002,2]
[327306937,1715977857178,-1261.34749571,0.0002,2]
[327306938,1715977857187,-1771.45400006,0.0002,2]
[327306939,1715977857198,-9015.83731637,0.0002,2]
[327306940,1715977857208,-301.01,0.0002,2]
[327306941,1715977857218,-40000.0,0.0002,5]
[327306942,1715977857229,-1165.33527434,0.0002,4]
[327306943,1715977857239,-189.0,0.0002,2]
[327306944,1715977857250,-1401.0,0.0002,2]
[327306945,1715977857259,-384228.19535037,0.0002,4]
[327306946,1715977857947,-2390.55985511,0.0002,4]
[327306947,1715977858021,-234.773835,0.0001898,2]
[327306948,1715977858034,-234.773835,0.000195,2]
[327306949,1715977858044,-1407.7542554,0.0002,4]
[327306950,1715977858055,-422.68123003,0.0002,4]
[327306951,1715977858066,-3726.4056193,0.0002,4]
[327306952,1715977858086,-1075.78973677,0.0002,4]
[327306953,1715977858155,-234.773835,0.0001898,2]
[327306954,1715977858165,-234.773835,0.000195,2]
[327306955,1715977858175,-94.3307953,0.0002,4]
[327306956,1715977858187,-1267.82998508,0.0002,4]
[327306957,1715977858200,-35386.45317264,0.0002,4]
[327306958,1715977858209,-1204.37863375,0.0002,2]
[327306959,1715977858219,-160.0,0.0002,2]
[327306960,1715977858231,-695.0,0.0002,3]
[327306961,1715977858240,-1000.0,0.0002,2]
[327306962,1715977858251,-2699.84632404,0.0002,7]
[327306963,1715977858260,-2100.0,0.0002,4]
[327306964,1715977858270,-810.05787017,0.0002,2]
[327306965,1715977858281,-290.90569125,0.0002,2]
[327306966,1715977858290,-3737.36011444,0.0002,2]
[327306967,1715977858301,-6653.0,0.0002,2]
[327306968,1715977858310,-3950.0,0.0002,2]
[327306969,1715977858320,-2559.04538719,0.0002,2]
[327306970,1715977858331,-343.0,0.0002,2]
[327306971,1715977858340,-160.0,0.0002,2]
[327306972,1715977858350,-328.40293144,0.0002,5]
[327306973,1715977858359,-687.0,0.0002,2]
[327306974,1715977858369,-687.0,0.0002,2]
[327306975,1715977858378,-155.0,0.0002,2]
[327306976,1715977858388,-971.0,0.0002,2]
[327306977,1715977858398,-971.0,0.0002,2]
[327306978,1715977858407,-343.0,0.0002,2]
[327306979,1715977858417,-500.0,0.0002,2]
[327306980,1715977858428,-189.0,0.0002,2]
[327306981,1715977858437,-300.0,0.0002,2]
[327306982,1715977858448,-306.043,0.0002,2]
[327306983,1715977858458,-343.0,0.0002,2]
[327306984,1715977858467,-189.0,0.0002,2]
[327306985,1715977858477,-6087.52074,0.0002,2]
[327306986,1715977858488,-9545.57249954,0.0002,2]
[327306987,1715977858498,-5096.0,0.0002,2]
[327306988,1715977858509,-654.5,0.0002,2]
[327306989,1715977858519,-166.37661658,0.0002,2]